fUSD/lending_fUSD_20250505
["ID","MTS","AMOUNT","RATE_DAILY","PERIOD"]
[360000600,1746473444754,-547.86,0.00019999,2]
[360000602,1746473444764,-547.86,0.00019999,2]
[360000604,1746473444774,-547.86,0.00019999,2]
[360000606,1746473444783,-547.86,0.00019999,2]
[360000608,1746473444793,-547.86,0.00019999,2]
[360000610,1746473444804,-263.17,0.00019999,2]
[360000612,1746473444813,-547.86,0.00019999,2]
[360000614,1746473444823,-547.86,0.00019999,2]
[360000616,1746473444833,-547.86,0.00019999,2]
[360000618,1746473444842,-547.86,0.00019999,2]
[360000620,1746473444852,-547.86,0.00019999,2]
[360000622,1746473444862,-547.86,0.00019999,2]
[360000624,1746473444872,-547.86,0.00019999,2]
[360000626,1746473444881,-150.0,0.00019999,2]
[360000628,1746473444891,-547.86,0.00019999,2]
[360000630,1746473444900,-547.86,0.00019999,2]
[360000632,1746473444909,-547.86,0.00019999,2]
[360000634,1746473444919,-547.86,0.00019999,2]
[360000636,1746473444928,-547.86,0.00019999,2]
[360000638,1746473444937,-547.86,0.00019999,2]
[360000640,1746473444947,-547.86,0.00019999,2]
[360000642,1746473444956,-547.86,0.00019999,2]
[360000644,1746473444966,-547.86,0.00019999,2]
[360000646,1746473444976,-547.86,0.00019999,2]
[360000648,1746473444985,-548.0,0.00019999,2]
[360000650,1746473444995,-450.0,0.00019999,2]
[360000652,1746473445006,-450.0,0.00019999,2]
[360000654,1746473445016,-450.0,0.00019999,2]
[360000656,1746473445025,-450.0,0.00019999,2]
[360000658,1746473445034,-450.0,0.00019999,2]
[360000660,1746473445043,-450.0,0.00019999,2]
[360000662,1746473445052,-450.0,0.00019999,2]
[360000664,1746473445062,-378.71089035,0.00019999,2]
[360000666,1746473445072,-450.0,0.00019999,2]
[360000668,1746473445081,-450.0,0.00019999,2]
[360000670,1746473445091,-450.0,0.00019999,2]
[360000672,1746473445100,-450.0,0.00019999,2]
[360000674,1746473445109,-450.0,0.00019999,2]
[360000675,1746473445118,-450.0,0.00019999,2]
[360000677,1746473445128,-450.0,0.00019999,2]
[360000679,1746473445137,-450.0,0.00019999,2]
[360000681,1746473445147,-450.0,0.00019999,2]
[360000684,1746473445156,-450.0,0.00019999,2]
[360000685,1746473445165,-450.0,0.00019999,2]
[360000687,1746473445176,-450.0,0.00019999,2]
[360000689,1746473445186,-450.0,0.00019999,2]
[360000691,1746473445195,-450.0,0.00019999,2]
[360000693,1746473445204,-450.0,0.00019999,2]
[360000695,1746473445213,-450.0,0.00019999,2]
[360000697,1746473445223,-266.52,0.00019999,2]
[360000699,1746473445232,-450.0,0.00019999,2]
[360000701,1746473445242,-216.32,0.00019999,2]
[360000703,1746473445251,-450.0,0.00019999,2]
[360000705,1746473445261,-450.0,0.00019999,2]
[360000707,1746473445270,-485.33,0.00019999,2]
[360000709,1746473445279,-450.0,0.00019999,2]
[360000711,1746473445289,-537.91,0.00019999,2]
[360000713,1746473445298,-450.0,0.00019999,2]
[360000715,1746473445308,-450.0,0.00019999,2]
[360000717,1746473445317,-450.0,0.00019999,2]
[360000719,1746473445326,-450.0,0.00019999,2]
[360000721,1746473445335,-450.0,0.00019999,2]
[360000723,1746473445345,-270.41,0.00019999,2]
[360000725,1746473445355,-462.20401457,0.0002,2]
[360000727,1746473445364,-57823.36557558,0.0002,2]
[360000731,1746473445391,-1830.37323172,0.0002,2]
[360000733,1746473445402,-260.78800003,0.0002,2]
[360000740,1746473445465,-450.0,0.00019997,2]
[360000742,1746473445475,-450.0,0.00019997,2]
[360000744,1746473445484,-450.0,0.00019998,2]
[360000746,1746473445495,-450.0,0.00019998,2]
[360000748,1746473445504,-450.0,0.00019998,2]
[360000750,1746473445513,-537.04,0.00019999,2]
[360000752,1746473445523,-7521.04672348,0.0002,2]
[360000754,1746473445534,-606682.90216843,0.0002,2]
[360000756,1746473445545,-475.04072118,0.0002,2]
[360000758,1746473445556,-3121.8680359,0.0002,2]
[360000760,1746473445567,-394.20200095,0.0002,2]
[360000763,1746473445579,-12014.77284846,0.0002,2]
[360000771,1746473445650,-1078.49443173,0.00019894,2]
[360000773,1746473445660,-450.0,0.00019998,2]
[360000775,1746473445669,-549.11,0.00019998,2]
[360000777,1746473445678,-6998.56318239,0.0002,2]
[360000779,1746473445690,-665.159998,0.0002,2]
[360000781,1746473445701,-892.0,0.0002,2]
[360000783,1746473445712,-3911.09443278,0.0002,2]
[360000818,1746473446043,-450.0,0.00019998,2]
[360000820,1746473446053,-350.0,0.00019999,2]
[360000909,1746473780671,607.87,0.00017095,2]
[360000910,1746473780874,607.87,0.00019359,2]
[360000911,1746473818920,156.26,0.00019013,2]
[360000912,1746473843371,500.0,0.0003013,120]
[360000913,1746473851621,500.0,0.0003013,120]
[360000914,1746473858703,500.0,0.0003013,120]
[360000915,1746473865826,500.0,0.0003013,120]
[360000916,1746473883106,500.0,0.0003013,120]
[360000917,1746473892040,500.0,0.0003013,120]
[360000918,1746473903858,500.0,0.0003013,120]
[360000919,1746473913801,500.0,0.0003013,120]
[360000920,1746474029227,277.74,0.00018945,2]
[360000984,1746474195112,20817.57,0.00018945,2]
[360000985,1746474198207,600.0,0.00018944,2]
[360000986,1746474232127,1000.0,0.00018934,2]
[360000996,1746474632029,-250.0,0.00019699,2]
[360000997,1746474632038,-200.0,0.00019699,2]
[360000998,1746474632048,-200.0,0.000197,2]
[360000999,1746474632057,-200.0,0.000197,2]
[360001000,1746474632066,-3006.63117998,0.00019796,2]
[360001001,1746474632075,-1000.0,0.00019798,2]
[360001002,1746474632085,-1200.0,0.00019798,2]
[360001003,1746474632094,-300.0,0.00019798,2]
[360001004,1746474632104,-37740.49752871,0.00019799,2]
[360001005,1746474632124,-4342.6245556,0.00019799,2]
[360001006,1746474632134,-563.65881631,0.00019799,2]
[360001007,1746474632145,-901.51921438,0.00019799,2]
[360001008,1746474632162,-495.67810691,0.00019799,2]
[360001009,1746474632171,-1000.0,0.000198,2]
[360001010,1746474632180,-3006.63117995,0.00019808,2]
[360001011,1746474632190,-3006.63117995,0.00019819,2]
[360001012,1746474632199,-3006.63117995,0.00019831,2]
[360001013,1746474632209,-2000.0,0.0001984,2]
[360001014,1746474632219,-200.0,0.0001984,2]
[360001015,1746474632228,-190.63676607,0.00019842,2]
[360001016,1746474632240,-2815.99441388,0.00019842,2]
[360001017,1746474632249,-3006.63117995,0.00019854,2]
[360001018,1746474632258,-3006.63117995,0.00019865,2]
[360001019,1746474632267,-500.0,0.00019873,2]
[360001020,1746474632278,-500.0,0.00019873,2]
[360001021,1746474632287,-500.0,0.00019873,2]
[360001022,1746474632300,-500.0,0.00019873,2]
[360001023,1746474632309,-500.0,0.00019873,2]
[360001024,1746474632319,-500.0,0.00019873,2]
[360001025,1746474632328,-650.0,0.00019873,2]
[360001026,1746474632339,-3006.63117995,0.00019877,2]
[360001027,1746474632348,-207.4,0.00019884,2]
[360001028,1746474632358,-151.0,0.00019887,2]
[360001029,1746474632369,-151.0,0.00019887,2]
[360001030,1746474632378,-668.65185757,0.00019887,2]
[360001031,1746474632388,-3006.63117995,0.00019888,2]
[360001032,1746474632397,-409.7633,0.00019894,2]
[360001033,1746474632406,-791.45438934,0.00019895,2]
[360001034,1746474632415,-500.0,0.00019895,2]
[360001035,1746474632425,-500.0,0.00019895,2]
[360001036,1746474632434,-500.0,0.00019895,2]
[360001037,1746474632444,-500.0,0.00019895,2]
[360001038,1746474632455,-791.45438934,0.00019895,2]
[360001039,1746474632465,-791.45438934,0.00019895,2]
[360001040,1746474632474,-161.76289222,0.00019895,2]
[360001041,1746474632485,-413.21827188,0.00019895,2]
[360001042,1746474632494,-500.0,0.00019895,2]
[360001043,1746474632504,-791.45438934,0.00019895,2]
[360001044,1746474632514,-791.45438934,0.00019895,2]
[360001045,1746474632524,-500.0,0.00019895,2]
[360001046,1746474632534,-386.71423903,0.00019895,2]
[360001047,1746474632582,-404.74015031,0.00019895,2]
[360001048,1746474632591,-11.13454905,0.00019895,2]
[360001050,1746474632602,-383.12875825,0.00019895,2]
[360001053,1746474632613,-397.19108204,0.00019895,2]
[360001055,1746474632622,-159.06964785,0.00019895,2]
[360001062,1746474632675,-632.38474149,0.00019895,2]
[360001064,1746474632684,-599.46657892,0.00019895,2]
[360001066,1746474632696,-191.98781042,0.00019895,2]
[360001068,1746474632705,-386.60359186,0.00019895,2]
[360001072,1746474632728,-404.85079748,0.00019895,2]
[360001074,1746474632738,-791.45438934,0.00019895,2]
[360001076,1746474632747,-629.66960432,0.00019895,2]
[360001077,1746474632758,-161.78478502,0.00019895,2]
[360001078,1746474632768,-791.45438934,0.00019895,2]
[360001082,1746474632940,-791.45438934,0.00019895,2]
[360001083,1746474632950,-791.45438934,0.00019895,2]
[360001085,1746474632961,-791.45438934,0.00019895,2]
[360001087,1746474632971,-791.45438934,0.00019895,2]
[360001089,1746474632980,-178.48892997,0.00019895,2]
[360001090,1746474632992,-612.96545937,0.00019895,2]
[360001091,1746474633002,-791.45438934,0.00019895,2]
[360001092,1746474633012,-791.45438934,0.00019895,2]
[360001093,1746474633022,-791.45438934,0.00019895,2]
[360001096,1746474633036,-791.45438934,0.00019895,2]
[360001098,1746474633046,-791.45438934,0.00019895,2]
[360001100,1746474633056,-791.45438934,0.00019895,2]
[360001102,1746474633066,-269.52786796,0.00019895,2]
[360001145,1746474638093,-521.92652138,0.00019895,2]
[360001146,1746474638104,-791.45438934,0.00019895,2]
[360001147,1746474638113,-791.45438934,0.00019895,2]
[360001148,1746474638123,-791.45438934,0.00019895,2]
[360001149,1746474638133,-161.0843106,0.00019895,2]
[360001150,1746474638145,-630.37007874,0.00019895,2]
[360001151,1746474638154,-682.15823917,0.00019895,2]
[360001152,1746474638176,-109.29615017,0.00019895,2]
[360001153,1746474638185,-791.45438934,0.00019895,2]
[360001154,1746474638194,-791.45438934,0.00019895,2]
[360001155,1746474638204,-791.45438934,0.00019895,2]
[360001156,1746474638213,-791.45438934,0.00019895,2]
[360001157,1746474638222,-791.45438934,0.00019895,2]
[360001158,1746474638231,-791.45438934,0.00019895,2]
[360001159,1746474638240,-791.45438934,0.00019895,2]
[360001160,1746474638249,-791.45438934,0.00019895,2]
[360001161,1746474638259,-791.45438934,0.00019895,2]
[360001162,1746474638268,-791.45438934,0.00019895,2]
[360001163,1746474638278,-791.45438934,0.00019895,2]
[360001164,1746474638288,-791.45438934,0.00019895,2]
[360001165,1746474638301,-791.45438934,0.00019895,2]
[360001166,1746474638311,-791.45438934,0.00019895,2]
[360001167,1746474638320,-791.45438934,0.00019895,2]
[360001168,1746474638330,-791.45438934,0.00019895,2]
[360001169,1746474638340,-791.45438934,0.00019895,2]
[360001170,1746474638349,-791.45438934,0.00019895,2]
[360001171,1746474638358,-791.45438934,0.00019895,2]
[360001172,1746474638368,-6953.78,0.00019896,2]
[360001173,1746474638378,-15753.6,0.00019896,2]
[360001174,1746474638388,-150.99,0.00019896,2]
[360001175,1746474638397,-150.99,0.00019896,2]
[360001176,1746474638406,-9999.99,0.00019896,2]
[360001177,1746474638416,-3866.97740779,0.00019896,2]
[360001179,1746474638425,-9999.99,0.00019896,2]
[360001181,1746474638434,-999.99,0.00019896,2]
[360001183,1746474638443,-1219.81,0.00019896,2]
[360001185,1746474638452,-3261.8,0.00019896,2]
[360001187,1746474638462,-3658.66,0.00019896,2]
[360001188,1746474638471,-8448.58,0.00019896,2]
[360001190,1746474638480,-435.18,0.00019896,2]
[360001192,1746474638490,-178.85,0.00019896,2]
[360001194,1746474638499,-3866.97740778,0.00019896,2]
[360001196,1746474638508,-3866.97740778,0.00019897,2]
[360001198,1746474638518,-3866.97740778,0.00019897,2]
[360001200,1746474638527,-3866.97740778,0.00019898,2]
[360001202,1746474638537,-450.0,0.00019898,2]
[360001204,1746474638547,-450.0,0.00019898,2]
[360001206,1746474638556,-450.0,0.00019898,2]
[360001208,1746474638566,-450.0,0.00019898,2]
[360001210,1746474638576,-450.0,0.00019898,2]
[360001212,1746474638585,-450.0,0.00019898,2]
[360001214,1746474638594,-450.0,0.00019898,2]
[360001215,1746474638603,-450.0,0.00019898,2]
[360001216,1746474638612,-450.0,0.00019898,2]
[360001217,1746474638621,-450.0,0.00019898,2]
[360001218,1746474638630,-450.0,0.00019898,2]
[360001219,1746474638639,-450.0,0.00019898,2]
[360001220,1746474638649,-450.0,0.00019898,2]
[360001221,1746474638658,-3866.97740778,0.00019898,2]
[360001222,1746474638667,-428.69600817,0.00019899,2]
[360001223,1746474638677,-450.0,0.00019899,2]
[360001224,1746474638686,-450.0,0.00019899,2]
[360001225,1746474638696,-450.0,0.00019899,2]
[360001226,1746474638706,-153.30179344,0.00019899,2]
[360001227,1746474638715,-450.0,0.00019899,2]
[360001228,1746474638724,-450.0,0.00019899,2]
[360001229,1746474638733,-428.69600817,0.000199,2]
[360001230,1746474638743,-1000.0,0.000199,2]
[360001231,1746474638752,-3006.63117995,0.000199,2]
[360001232,1746474638761,-1538.55821934,0.000199,2]
[360001233,1746474638771,-428.69600817,0.000199,2]
[360001235,1746474638781,-797.0,0.00019962,2]
[360001237,1746474638790,-5931.0,0.00019962,2]
[360001239,1746474638799,-246.16001414,0.00019972,2]
[360001241,1746474638808,-260.21243497,0.00019972,2]
[360001243,1746474638817,-450.0,0.00019972,2]
[360001245,1746474638827,-450.0,0.00019972,2]
[360001246,1746474638835,-450.0,0.00019972,2]
[360001248,1746474638844,-450.0,0.00019972,2]
[360001250,1746474638853,-450.0,0.00019972,2]
[360001252,1746474638862,-450.0,0.00019972,2]
[360001254,1746474638872,-450.0,0.00019972,2]
[360001256,1746474638881,-450.0,0.00019972,2]
[360001258,1746474638890,-450.0,0.00019972,2]
[360001260,1746474638900,-450.0,0.00019972,2]
[360001262,1746474638909,-468.70797676,0.00019972,2]
[360001264,1746474638918,-450.0,0.00019972,2]
[360001266,1746474638928,-450.0,0.00019972,2]
[360001268,1746474638937,-450.0,0.00019972,2]
[360001270,1746474638947,-250.0,0.00019972,2]
[360001272,1746474638956,-450.0,0.00019972,2]
[360001274,1746474638966,-1461.363297,0.00019972,2]
[360001276,1746474638975,-450.0,0.00019972,2]
[360001277,1746474638984,-450.0,0.00019972,2]
[360001278,1746474638994,-450.0,0.00019972,2]
[360001280,1746474639003,-450.0,0.00019972,2]
[360001282,1746474639012,-870.181135,0.00019972,2]
[360001284,1746474639021,-500.0,0.00019973,2]
[360001286,1746474639030,-500.0,0.00019973,2]
[360001288,1746474639039,-500.0,0.00019973,2]
[360001289,1746474639048,-500.0,0.00019973,2]
[360001291,1746474639057,-500.0,0.00019973,2]
[360001293,1746474639066,-500.0,0.00019973,2]
[360001295,1746474639075,-320.46954599,0.00019973,2]
[360001297,1746474639084,-501.63502191,0.00019973,2]
[360001299,1746474639094,-500.0,0.00019973,2]
[360001301,1746474639103,-500.0,0.00019973,2]
[360001303,1746474639112,-501.37713214,0.00019973,2]
[360001305,1746474639121,-234.81794579,0.00019973,2]
[360001307,1746474639129,-540.11124566,0.00019973,2]
[360001309,1746474639139,-500.0,0.00019973,2]
[360001311,1746474639148,-500.0,0.00019973,2]
[360001313,1746474639157,-500.0,0.00019973,2]
[360001315,1746474639168,-500.0,0.00019973,2]
[360001317,1746474639177,-500.0,0.00019973,2]
[360001319,1746474639186,-500.0,0.00019973,2]
[360001321,1746474639195,-2836.34,0.00019978,2]
[360001323,1746474639204,-4334.9882648,0.00019986,2]
[360001324,1746474639213,-3307.5169636,0.00019986,2]
[360001326,1746474639222,-21235.8371783,0.00019986,2]
[360001328,1746474639231,-450.0,0.00019988,2]
[360001330,1746474639240,-562.40616649,0.00019988,2]
[360001332,1746474639248,-450.0,0.00019988,2]
[360001334,1746474639257,-450.0,0.00019988,2]
[360001336,1746474639267,-450.0,0.00019988,2]
[360001338,1746474639276,-450.0,0.00019988,2]
[360001340,1746474639286,-450.0,0.00019988,2]
[360001342,1746474639297,-450.0,0.00019988,2]
[360001344,1746474639306,-450.0,0.00019988,2]
[360001346,1746474639315,-450.0,0.00019988,2]
[360001348,1746474639323,-450.0,0.00019988,2]
[360001350,1746474639332,-450.0,0.00019988,2]
[360001352,1746474639341,-450.0,0.00019988,2]
[360001354,1746474639351,-450.0,0.00019988,2]
[360001356,1746474639360,-450.0,0.00019988,2]
[360001358,1746474639370,-450.0,0.00019988,2]
[360001360,1746474639379,-450.0,0.00019988,2]
[360001362,1746474639388,-450.0,0.00019988,2]
[360001364,1746474639397,-450.0,0.00019988,2]
[360001366,1746474639406,-450.0,0.00019988,2]
[360001368,1746474639415,-450.0,0.00019988,2]
[360001369,1746474639425,-450.0,0.00019988,2]
[360001371,1746474639434,-450.0,0.00019988,2]
[360001373,1746474639443,-450.0,0.00019988,2]
[360001375,1746474639452,-450.0,0.00019988,2]
[360001377,1746474639461,-450.0,0.00019988,2]
[360001379,1746474639470,-450.0,0.00019988,2]
[360001381,1746474639479,-450.0,0.00019988,2]
[360001383,1746474639488,-450.0,0.00019988,2]
[360001385,1746474639498,-450.0,0.00019988,2]
[360001387,1746474639508,-450.0,0.00019988,2]
[360001388,1746474639517,-450.0,0.00019988,2]
[360001390,1746474639526,-450.0,0.00019988,2]
[360001392,1746474639536,-450.0,0.00019988,2]
[360001394,1746474639545,-450.0,0.00019988,2]
[360001396,1746474639554,-450.0,0.00019988,2]
[360001398,1746474639563,-450.0,0.00019988,2]
[360001400,1746474639572,-450.0,0.00019988,2]
[360001402,1746474639582,-450.0,0.00019988,2]
[360001404,1746474639591,-450.0,0.00019988,2]
[360001406,1746474639600,-450.0,0.00019988,2]
[360001407,1746474639610,-450.0,0.00019988,2]
[360001409,1746474639620,-450.0,0.00019988,2]
[360001411,1746474639629,-450.0,0.00019988,2]
[360001413,1746474639638,-542.9930432,0.00019988,2]
[360001415,1746474639647,-450.0,0.00019988,2]
[360001417,1746474639657,-450.0,0.00019988,2]
[360001419,1746474639666,-450.0,0.00019988,2]
[360001421,1746474639675,-450.0,0.00019988,2]
[360001423,1746474639685,-450.0,0.00019988,2]
[360001425,1746474639694,-450.0,0.00019988,2]
[360001427,1746474639703,-450.0,0.00019988,2]
[360001429,1746474639713,-450.0,0.00019988,2]
[360001431,1746474639722,-300.11662615,0.00019989,2]
[360001433,1746474639731,-1611.996,0.00019989,2]
[360001435,1746474639740,-168.088,0.00019989,2]
[360001437,1746474639750,-300.11662615,0.0001999,2]
[360001439,1746474639760,-300.11662615,0.0001999,2]
[360001441,1746474639770,-450.0,0.00019996,2]
[360001443,1746474639780,-450.0,0.00019996,2]
[360001445,1746474639789,-450.0,0.00019996,2]
[360001447,1746474639799,-450.0,0.00019996,2]
[360001449,1746474639809,-450.0,0.00019996,2]
[360001451,1746474639817,-450.0,0.00019996,2]
[360001453,1746474639828,-450.0,0.00019996,2]
[360001455,1746474639837,-450.0,0.00019996,2]
[360001457,1746474639847,-450.0,0.00019996,2]
[360001459,1746474639856,-450.0,0.00019996,2]
[360001461,1746474639865,-450.0,0.00019996,2]
[360001463,1746474639874,-450.0,0.00019996,2]
[360001465,1746474639884,-450.0,0.00019996,2]
[360001467,1746474639895,-189.86767986,0.00019996,2]
[360001469,1746474639904,-450.0,0.00019996,2]
[360001471,1746474639914,-450.0,0.00019996,2]
[360001473,1746474639923,-450.0,0.00019996,2]
[360001475,1746474639932,-450.0,0.00019996,2]
[360001476,1746474639941,-450.0,0.00019996,2]
[360001478,1746474639950,-450.0,0.00019996,2]
[360001480,1746474639959,-450.0,0.00019996,2]
[360001482,1746474639968,-450.0,0.00019996,2]
[360001484,1746474639977,-450.0,0.00019996,2]
[360001486,1746474639986,-450.0,0.00019996,2]
[360001488,1746474639995,-450.0,0.00019996,2]
[360001490,1746474640005,-450.0,0.00019996,2]
[360001492,1746474640014,-450.0,0.00019996,2]
[360001494,1746474640024,-450.0,0.00019996,2]
[360001496,1746474640034,-450.0,0.00019996,2]
[360001498,1746474640043,-450.0,0.00019996,2]
[360001500,1746474640053,-450.0,0.00019996,2]
[360001502,1746474640062,-450.0,0.00019996,2]
[360001504,1746474640071,-450.0,0.00019996,2]
[360001506,1746474640081,-450.0,0.00019996,2]
[360001509,1746474640090,-450.0,0.00019996,2]
[360001513,1746474640099,-450.0,0.00019996,2]
[360001516,1746474640109,-450.0,0.00019996,2]
[360001518,1746474640119,-450.0,0.00019996,2]
[360001520,1746474640129,-450.0,0.00019996,2]
[360001523,1746474640138,-450.0,0.00019996,2]
[360001525,1746474640148,-450.0,0.00019996,2]
[360001527,1746474640157,-450.0,0.00019996,2]
[360001544,1746474640313,-450.0,0.00019996,2]
[360001546,1746474640323,-450.0,0.00019996,2]
[360001548,1746474640333,-264.07665122,0.00019996,2]
[360001550,1746474640343,-450.0,0.00019996,2]
[360001552,1746474640351,-450.0,0.00019996,2]
[360001554,1746474640361,-450.0,0.00019996,2]
[360001556,1746474640370,-450.0,0.00019996,2]
[360001558,1746474640379,-454.69914751,0.00019996,2]
[360001560,1746474640389,-450.0,0.00019996,2]
[360001562,1746474640399,-450.0,0.00019996,2]
[360001564,1746474640408,-450.0,0.00019996,2]
[360001566,1746474640418,-450.0,0.00019996,2]
[360001568,1746474640427,-450.0,0.00019996,2]
[360001569,1746474640436,-450.0,0.00019996,2]
[360001571,1746474640446,-450.0,0.00019996,2]
[360001573,1746474640456,-452.2335742,0.00019996,2]
[360001575,1746474640465,-450.0,0.00019996,2]
[360001577,1746474640475,-450.0,0.00019996,2]
[360001579,1746474640484,-450.0,0.00019996,2]
[360001581,1746474640493,-450.0,0.00019996,2]
[360001583,1746474640503,-450.0,0.00019996,2]
[360001585,1746474640512,-450.0,0.00019996,2]
[360001587,1746474640522,-450.0,0.00019996,2]
[360001589,1746474640531,-450.0,0.00019996,2]
[360001591,1746474640540,-450.0,0.00019996,2]
[360001593,1746474640549,-450.0,0.00019996,2]
[360001595,1746474640558,-450.0,0.00019996,2]
[360001597,1746474640568,-450.0,0.00019996,2]
[360001599,1746474640577,-450.0,0.00019996,2]
[360001601,1746474640586,-450.0,0.00019996,2]
[360001603,1746474640595,-450.0,0.00019996,2]
[360001605,1746474640605,-488.04,0.00019996,2]
[360001606,1746474640614,-450.0,0.00019996,2]
[360001608,1746474640623,-450.0,0.00019996,2]
[360001610,1746474640632,-450.0,0.00019996,2]
[360001612,1746474640641,-450.0,0.00019996,2]
[360001613,1746474640651,-450.0,0.00019996,2]
[360001614,1746474640660,-450.0,0.00019996,2]
[360001615,1746474640670,-450.0,0.00019996,2]
[360001616,1746474640679,-450.0,0.00019996,2]
[360001617,1746474640688,-450.0,0.00019996,2]
[360001618,1746474640697,-378.91010937,0.00019996,2]
[360001619,1746474640708,-450.0,0.00019996,2]
[360001620,1746474640717,-450.0,0.00019996,2]
[360001621,1746474640726,-450.0,0.00019996,2]
[360001622,1746474640736,-450.0,0.00019996,2]
[360001623,1746474640745,-450.0,0.00019996,2]
[360001624,1746474640755,-450.0,0.00019996,2]
[360001625,1746474640764,-450.0,0.00019996,2]
[360001626,1746474640773,-450.0,0.00019996,2]
[360001627,1746474640783,-450.0,0.00019996,2]
[360001628,1746474640793,-450.0,0.00019996,2]
[360001629,1746474640804,-450.0,0.00019996,2]
[360001630,1746474640814,-450.0,0.00019996,2]
[360001631,1746474640823,-7948.51,0.00019996,2]
[360001632,1746474640832,-450.0,0.00019996,2]
[360001633,1746474640841,-450.0,0.00019996,2]
[360001634,1746474640851,-450.0,0.00019996,2]
[360001635,1746474640860,-450.0,0.00019996,2]
[360001637,1746474640869,-450.0,0.00019996,2]
[360001639,1746474640878,-450.0,0.00019996,2]
[360001641,1746474640887,-450.0,0.00019996,2]
[360001643,1746474640897,-450.0,0.00019996,2]
[360001645,1746474640906,-450.0,0.00019996,2]
[360001647,1746474640916,-450.0,0.00019996,2]
[360001649,1746474640925,-450.0,0.00019996,2]
[360001651,1746474640934,-450.0,0.00019996,2]
[360001653,1746474640943,-589.62,0.00019996,2]
[360001655,1746474640953,-450.0,0.00019996,2]
[360001657,1746474640963,-468.78,0.00019996,2]
[360001659,1746474640972,-450.0,0.00019996,2]
[360001660,1746474640981,-450.0,0.00019996,2]
[360001662,1746474640990,-450.0,0.00019996,2]
[360001664,1746474641000,-458.4,0.00019996,2]
[360001666,1746474641009,-529.78928757,0.00019996,2]
[360001668,1746474641019,-450.0,0.00019996,2]
[360001670,1746474641028,-450.0,0.00019996,2]
[360001672,1746474641038,-450.0,0.00019996,2]
[360001674,1746474641048,-450.0,0.00019996,2]
[360001676,1746474641057,-450.0,0.00019996,2]
[360001678,1746474641067,-450.0,0.00019996,2]
[360001680,1746474641076,-450.0,0.00019996,2]
[360001682,1746474641085,-450.0,0.00019996,2]
[360001684,1746474641095,-450.0,0.00019996,2]
[360001686,1746474641104,-450.0,0.00019996,2]
[360001688,1746474641114,-450.0,0.00019996,2]
[360001690,1746474641123,-450.0,0.00019996,2]
[360001692,1746474641132,-450.0,0.00019996,2]
[360001694,1746474641141,-450.0,0.00019996,2]
[360001696,1746474641151,-450.0,0.00019996,2]
[360001698,1746474641160,-450.0,0.00019996,2]
[360001700,1746474641170,-450.0,0.00019996,2]
[360001702,1746474641179,-450.0,0.00019996,2]
[360001704,1746474641188,-450.0,0.00019996,2]
[360001706,1746474641197,-450.0,0.00019996,2]
[360001708,1746474641206,-450.0,0.00019996,2]
[360001711,1746474641215,-450.0,0.00019996,2]
[360001713,1746474641225,-450.0,0.00019996,2]
[360001715,1746474641234,-556.59,0.00019996,2]